bitfinex-derivatives/quotes_SOLF0:USTF0_20251222
["timestamp","ask_amount","ask_price","bid_price","bid_amount"]
[1766407531114,0.04987908,126.85,126.81,0.06054444]
[1766407531514,8.60987908,126.85,126.81,0.06054444]
[1766407532623,8.60987908,126.85,126.76,97.28]
[1766407532829,8.56,126.85,126.77,4.22]
[1766407533030,8.56,126.85,126.77,11.3229]
[1766407533620,0.05151312,126.82,126.8,0.05693657]
[1766407545233,8.13151312,126.82,126.76,4.24]
[1766407546341,8.13151312,126.82,126.78,0.05467883]
[1766407551044,8.13151312,126.82,126.73,11.4146]
[1766407551342,8.08,126.82,126.73,11.4146]
[1766407551533,8.08,126.8,126.74,7.1045]
[1766407551935,0.05789206,126.78,126.76,0.05918734]
[1766407552347,8.13789206,126.78,126.72,11.5252]
[1766407552545,8.13789206,126.78,126.72,4.42]
[1766407553234,0.05789206,126.78,126.74,4.47122686]
[1766407553435,0.05554943,126.77,126.74,4.47122686]
[1766407554546,0.05554943,126.77,126.74,0.05122686]
[1766407557647,8.13554943,126.77,126.74,0.05122686]
[1766407560342,8.08,126.81,126.74,4.49122686]
[1766407561549,0.05279321,126.79,126.74,4.49122686]
[1766407562453,0.00279321,126.79,126.75,4.33]
[1766407563952,0.00279321,126.79,126.75,11.4338]
[1766407565658,0.00279321,126.79,126.76,4.35]
[1766407566155,10.18275282,126.83,126.76,11.4532]
[1766407567151,0.05830508,126.81,126.78,0.05912677]
[1766407567655,2.10275282,126.83,126.78,4.40912677]
[1766407567865,10.61275282,126.85,126.78,4.40912677]
[1766407568360,10.61275282,126.85,126.78,11.51122677]
[1766407568772,0.05247776,126.83,126.78,114.82912677]
[1766407569060,2.10275282,126.84,126.78,8.70912677]
[1766407569364,2.10275282,126.86,126.78,8.65]
[1766407569752,110.3715,126.91,126.78,8.65]
[1766407569753,2.10275282,126.87,126.78,8.65]
[1766407569953,0.05925993,126.84,126.81,0.05950392]
[1766407570167,119.70587364,126.94,126.81,8.70950392]
[1766407570168,2.10275282,126.89,126.81,8.70950392]
[1766407570353,2.10275282,126.89,126.81,8.65]
[1766407570550,2.10275282,126.89,126.81,15.7504]
[1766407570758,7.0957,126.9,126.81,15.7504]
[1766407571057,10.61275282,126.89,126.84,0.05433993]
[1766407571263,8.51,126.86,126.81,8.65]
[1766407572463,8.51,126.86,126.82,0.05699263]
[1766407575666,0.05616374,126.87,126.82,0.05699263]
[1766407576069,0.05616374,126.87,126.82,8.70699263]
[1766407577662,0.05616374,126.87,126.83,8.65]
[1766407578261,0.05616374,126.87,126.84,8.65]
[1766407578569,2.10275282,126.91,126.84,8.65]
[1766407578760,2.10275282,126.91,126.85,15.7483]
[1766407579162,202.4434,126.97,126.86,8.65]
[1766407579163,8.51,126.96,126.86,8.65]
[1766407579369,0.05275019,126.92,126.9,0.05635937]
[1766407579563,10.61275282,126.95,126.9,0.05635937]
[1766407579772,10.61275282,126.91,126.85,8.65]
[1766407580163,8.51,126.91,126.83,8.65]
[1766407580367,10.61275282,126.9,126.83,101.75]
[1766407580772,0.05450523,126.88,126.85,0.05363977]
[1766407583366,0.05450523,126.88,126.85,8.70363977]
[1766407583868,0.05450523,126.88,126.85,0.05363977]
[1766407588373,10.61275282,126.86,126.78,8.65]
[1766407589279,0.05146338,126.83,126.81,0.0587574]
[1766407590277,0.00146338,126.83,126.81,0.0587574]
[1766407591882,2.10275282,126.88,126.82,8.65]
[1766407592080,10.61275282,126.89,126.82,8.65]
[1766407592970,0.0538653,126.87,126.84,0.05720248]
[1766407596473,0.0538653,126.87,126.84,15.38610248]
[1766407596684,0.0038653,126.87,126.84,15.38610248]
[1766407600488,8.4138653,126.87,126.84,0.05720248]
[1766407600690,10.51661812,126.87,126.82,7.0996]
[1766407600882,10.51661812,126.87,126.8,8.25]
[1766407601582,10.51661812,126.87,126.82,0.05881347]
[1766407607389,10.51661812,126.87,126.79,7.1017]
[1766407607390,10.51275282,126.85,126.79,7.1017]
[1766407607786,8.41,126.85,126.79,15.3517]
[1766407607991,8.41,126.85,126.8,7.1012]
[1766407608288,0.05148076,126.84,126.81,0.05048602]
[1766407614208,10.51275282,126.89,126.81,8.30048602]
[1766407614386,10.51275282,126.89,126.81,8.25]
[1766407614592,10.51275282,126.89,126.82,15.3499]
[1766407615199,8.4647095,126.87,126.81,8.25]
[1766407616302,8.4647095,126.87,126.83,0.05509726]
[1766407618802,10.56746232,126.87,126.83,0.05509726]
[1766407619005,8.41,126.86,126.83,0.05509726]
[1766407630510,8.72,126.9,126.83,8.33509726]
[1766407630711,8.72,126.9,126.83,8.28]
[1766407631021,8.72,126.92,126.85,15.3783]
[1766407631615,0.05483162,126.9,126.87,0.0565923]
[1766407632515,8.77483162,126.9,126.85,7.0983]
[1766407632721,8.77483162,126.9,126.83,7.0991]
[1766407633616,8.77483162,126.9,126.85,0.05421663]
[1766407635416,15.87053162,126.9,126.85,0.00421663]
[1766407635622,8.72,126.89,126.85,0.00421663]
[1766407636021,8.72,126.88,126.81,8.28]
[1766407636729,8.72,126.88,126.82,7.1]
[1766407637029,0.0520402,126.86,126.84,0.05560228]
[1766407648839,0.0020402,126.86,126.84,8.33560228]
[1766407649731,0.0020402,126.86,126.84,7.15450228]
[1766407650839,0.0020402,126.86,126.84,16.14450228]
[1766407654843,0.0020402,126.86,126.84,0.05560228]
[1766407660441,0.0020402,126.86,126.84,9.21560228]
[1766407661854,9.11,126.92,126.84,9.21560228]
[1766407662038,9.11,126.92,126.85,9.16]
[1766407662241,9.11,126.94,126.85,9.16]
[1766407662549,9.11,126.94,126.87,9.16]
[1766407663153,0.05759037,126.92,126.89,0.05524032]
[1766407663357,9.16759037,126.92,126.89,0.05524032]
[1766407665551,0.05759037,126.92,126.89,0.05524032]
[1766407669159,9.11,126.95,126.89,9.21524032]
[1766407670046,0.05744646,126.93,126.89,9.21524032]
[1766407672046,1.96150556,126.96,126.9,16.2555]
[1766407672244,11.07150556,126.96,126.9,16.2555]
[1766407673153,0.05340002,126.94,126.92,0.05789894]
[1766407676745,0.00340002,126.94,126.92,0.05789894]
[1766407677765,1.96150556,126.96,126.92,0.05789894]
[1766407678651,0.057279,126.95,126.92,0.05789894]
[1766407681148,0.057279,126.95,126.92,9.21789894]
[1766407681353,12.39364125,126.99,126.92,16.31219894]
[1766407681554,9.11,126.98,126.92,9.21789894]
[1766407682058,9.11,126.98,126.92,16.31229894]
[1766407682259,0.05790954,126.96,126.92,16.31229894]
[1766407683063,0.05790954,126.96,126.92,9.21789894]
[1766407685456,8.39,126.94,126.88,7.0963]
[1766407686161,8.39,126.94,126.87,8.89]
[1766407686565,0.05296384,126.92,126.89,0.05356648]
[1766407688054,2.15262834,126.92,126.89,0.05356648]
[1766407691174,0.05296384,126.92,126.89,8.94356648]
[1766407692659,0.05296384,126.92,126.89,16.03966648]
[1766407694871,2.0996645,126.95,126.91,8.89]
[1766407695474,10.4896645,126.97,126.91,8.89]
[1766407695868,0.05229954,126.95,126.93,0.05540769]
[1766407696071,0.05340413,126.95,126.93,0.05540769]
[1766407699275,8.39,127.02,126.95,15.9826]
[1766407699669,10.4896645,127.01,126.95,15.9826]
[1766407700283,0.05891048,126.99,126.97,0.05081103]
[1766407703180,8.44891048,126.99,126.97,0.00081103]
[1766407703576,0.05891048,126.99,126.97,0.00081103]
[1766407704574,10.54857498,126.99,126.92,15.984]
[1766407704884,10.4896645,126.99,126.92,15.984]
[1766407705399,10.4896645,127.01,126.94,8.89]
[1766407705579,0.05990439,126.99,126.94,8.89]
[1766407705880,0.05990439,126.99,126.96,0.05612873]
[1766407707181,0.05990439,126.99,126.96,8.94612873]
[1766407707484,2.0996645,127.02,126.96,16.03822873]
[1766407708085,10.4896645,127.03,126.96,16.03822873]
[1766407708283,0.0530805,127.01,126.96,16.03822873]
[1766407710590,0.0530805,127.01,126.97,7.0916]
[1766407711188,0.0530805,127.01,126.97,16.1016]
[1766407713684,0.0530805,127.01,126.97,9.01]
[1766407715785,7.0878,127.04,126.96,7.14822873]
[1766407715786,8.69,127.05,126.98,9.11]
[1766407715986,10.7896645,127.05,126.98,9.11]
[1766407716889,0.05029426,127.03,127.0,0.05851818]
[1766407722702,10.83995876,127.03,126.96,102.09]
[1766407722904,10.83995876,127.03,126.97,9.11]
[1766407723693,10.83995876,127.03,126.99,0.051473]
[1766407726495,8.69,127.0,126.93,9.11]
[1766407726696,10.7896645,126.99,126.93,9.11]
[1766407727592,0.05944063,126.97,126.95,0.06046872]
[1766407730306,2.0996645,127.0,126.95,0.06046872]
[1766407730606,2.0996645,127.0,126.95,9.17046872]
[1766407731308,0.05293435,126.99,126.95,9.17046872]
[1766407732000,0.05293435,126.99,126.95,16.26316872]
[1766407732398,0.05293435,126.99,126.95,9.17046872]
[1766407732601,0.00293435,126.99,126.95,9.17046872]
[1766407732913,0.00293435,126.99,126.96,16.2022]
[1766407733304,0.00293435,126.99,126.95,0.06046872]
[1766407734615,0.00293435,126.99,126.95,7.15316872]
[1766407734914,0.00293435,126.99,126.95,16.26316872]
[1766407738212,0.00293435,126.99,126.96,16.202]
[1766407740717,10.7896645,127.03,126.97,16.2016]
[1766407741622,0.05141493,127.01,126.97,16.2016]
[1766407741923,0.05141493,127.01,126.99,0.05142831]
[1766407751623,0.05141493,127.01,126.93,110.3479]
[1766407751624,9.32141493,127.01,126.95,16.4722]
[1766407751817,9.27,127.01,126.95,16.4722]
[1766407752129,9.27,127.01,126.96,16.4722]
[1766407752427,9.27,127.01,126.96,9.38]
[1766407752622,0.05324249,127.0,126.97,0.05240411]
[1766407762233,0.05324249,127.0,126.97,9.43240411]
[1766407762733,0.05324249,127.0,126.97,16.52410411]
[1766407764642,16.3573,127.05,126.99,9.38]
[1766407764933,9.27,127.04,126.99,9.38]
[1766407765638,0.0534188,127.03,127.0,0.05370086]
[1766407765827,9.3234188,127.03,126.95,9.38]
[1766407766132,9.27,127.02,126.95,9.38]
[1766407766832,0.05778821,127.0,126.97,0.05510624]
[1766407771338,9.17778821,127.0,126.97,0.05510624]
[1766407771933,9.17778821,127.0,126.93,7.0935]
[1766407772137,9.12,127.0,126.92,9.35]
[1766407772638,9.12,126.98,126.9,9.35]
[1766407772834,9.12,126.96,126.88,9.35]
[1766407773234,9.12,126.96,126.91,0.05633101]
[1766407773235,0.05276965,126.93,126.91,0.05633101]
[1766407774549,0.05276965,126.93,126.88,9.35]
[1766407775539,0.05276965,126.93,126.89,0.05073851]
[1766407776649,0.05276965,126.93,126.89,7.14683851]
[1766407779455,8.83276965,126.93,126.89,0.05073851]
[1766407780568,8.78,126.92,126.89,0.05073851]
[1766407781871,0.05276965,126.93,126.89,0.05073851]
[1766407782568,0.05276965,126.93,126.89,8.81073851]
[1766407783665,0.05276965,126.93,126.89,15.90673851]
[1766407784163,0.05276965,126.93,126.89,8.81073851]
[1766407788778,0.05276965,126.93,126.89,15.90683851]
[1766407791467,0.05276965,126.93,126.89,0.05073851]
[1766407791874,8.83276965,126.93,126.89,0.05073851]
[1766407792480,8.83276965,126.93,126.89,0.00073851]
[1766407801375,8.78,126.92,126.89,0.00073851]
[1766407801784,8.78,126.91,126.85,101.74]
[1766407801989,8.78,126.91,126.85,8.76]
[1766407802985,0.04997231,126.89,126.87,0.05628419]
[1766407803283,8.78,126.93,126.87,8.81628419]
[1766407804287,0.05740407,126.91,126.87,0.05628419]
[1766407806591,0.05740407,126.91,126.87,9.65628419]
[1766407807584,0.05740407,126.91,126.87,16.75348419]
[1766407807890,0.05740407,126.91,126.88,9.6]
[1766407809392,8.94,126.96,126.89,9.6]
[1766407810091,11.03853819,126.96,126.89,9.6]
[1766407810295,0.05519631,126.94,126.91,0.06047838]
[1766407813488,11.0937345,126.94,126.91,0.06047838]
[1766407813701,11.0937345,126.94,126.88,9.6]
[1766407813994,8.94,126.93,126.86,16.6974]
[1766407814794,0.06004591,126.91,126.88,0.05270409]
[1766407820298,11.03853819,126.9,126.84,9.6]
[1766407821093,11.03853819,126.9,126.84,16.6989]
[1766407821293,0.05702356,126.88,126.86,0.06029584]
[1766407825101,0.05702356,126.88,126.82,102.64]
[1766407825102,8.99702356,126.88,126.82,102.64]
[1766407825491,11.09556175,126.88,126.82,9.6]
[1766407826090,11.09556175,126.88,126.84,0.05597552]
[1766407826496,11.03853819,126.86,126.8,16.7007]
[1766407827501,0.05652322,126.84,126.82,0.06017205]
[1766407833410,11.20853819,126.88,126.82,9.13017205]
[1766407834300,0.05888928,126.86,126.82,9.13017205]
[1766407837911,7.0963,126.89,126.83,9.33]
[1766407839004,0.04975091,126.87,126.85,0.05458667]
[1766407848211,2.09853819,126.9,126.85,9.38458667]
[1766407849221,0.05958906,126.89,126.85,9.38458667]
[1766407849724,2.09853819,126.92,126.85,9.38458667]
[1766407850417,111.80193819,126.94,126.85,9.38458667]
[1766407850614,0.05453457,126.91,126.88,0.05459036]
[1766407852623,0.05453457,126.91,126.88,9.38459036]
[1766407856221,9.60453457,126.91,126.88,0.00459036]
[1766407856426,2.09853819,126.9,126.85,9.33]
[1766407857416,0.05014513,126.89,126.86,0.05139755]
[1766407859126,2.09853819,126.88,126.83,9.33]
[1766407860329,2.09853819,126.88,126.84,0.05412985]
[1766407865737,11.43853819,126.88,126.84,0.05412985]
[1766407865932,11.43853819,126.86,126.81,8.86]
[1766407866232,11.43853819,126.86,126.8,15.9607]
[1766407867036,0.05308711,126.84,126.82,0.05343252]
[1766407871426,0.00308711,126.84,126.82,8.91343252]
[1766407871632,9.34,126.88,126.82,8.91343252]
[1766407872239,12.62447425,126.87,126.82,8.91343252]
[1766407872638,0.05566006,126.86,126.82,8.91343252]
[1766407875532,0.05566006,126.86,126.82,16.01343252]
[1766407875833,0.05566006,126.86,126.83,8.86]
[1766407877434,12.62447425,126.89,126.83,8.86]
[1766407878435,0.05813434,126.87,126.85,0.056409]
[1766407880643,105.70447425,126.91,126.85,8.916409]
[1766407881142,9.34,126.9,126.85,8.916409]
[1766407881646,0.05952171,126.89,126.85,8.916409]
[1766407885343,9.39952171,126.89,126.85,0.056409]
[1766407885645,9.34,126.88,126.85,0.056409]
[1766407887244,7.0967,126.88,126.8,15.9607]
[1766407887450,3.34399596,126.89,126.8,8.86]
[1766407887451,9.34,126.87,126.8,8.86]
[1766407887658,9.34,126.86,126.8,8.86]
[1766407888343,0.05575282,126.84,126.82,0.05088719]
[1766407889040,7.0978,126.87,126.82,9.46088719]
[1766407889247,16.4078,126.87,126.82,9.46088719]
[1766407890143,0.05324459,126.86,126.82,9.46088719]
[1766407896063,0.05324459,126.86,126.82,16.56088719]
[1766407898762,0.00324459,126.86,126.83,9.72]
[1766407900652,0.00324459,126.86,126.83,16.8194]
[1766407901055,0.00324459,126.86,126.84,9.72]
[1766407905565,103.46007425,126.9,126.84,9.72]
[1766407905764,96.36447425,126.9,126.84,9.72]
[1766407906766,0.05382641,126.88,126.86,0.05787945]
[1766407922984,9.65,126.92,126.86,9.77787945]
[1766407923289,102.71,126.92,126.86,9.77787945]
[1766407923696,9.65,126.91,126.86,0.05787945]
[1766407924197,0.0591359,126.9,126.86,9.77787945]
[1766407925597,0.0591359,126.9,126.86,16.87537945]
[1766407926098,0.0591359,126.9,126.87,9.8]
[1766407927996,93.06,126.92,126.87,9.8]
[1766407928793,9.48,126.91,126.86,9.85787945]
[1766407929299,0.05992797,126.9,126.86,9.85787945]
[1766407929494,12.76447425,126.95,126.87,9.8]
[1766407929688,105.82447425,126.95,126.87,9.8]
[1766407930396,105.82447425,126.95,126.85,110.4161]
[1766407930397,0.0446974,126.92,126.9,0.05377643]
[1766407932503,11.57897296,126.95,126.9,9.85377643]
[1766407932805,2.09897296,126.95,126.9,9.85377643]
[1766407937210,11.57897296,126.95,126.9,9.85377643]
[1766407937911,2.09897296,126.93,126.9,0.05377643]
[1766407940905,100.1524,126.96,126.9,0.05377643]
[1766407940906,93.06,126.96,126.9,9.85377643]
[1766407942410,93.06,126.96,126.91,9.8]
[1766407943004,2.09897296,126.95,126.9,9.85377643]
[1766407943709,2.09897296,126.93,126.9,0.05377643]
[1766407944011,2.09897296,126.93,126.88,9.8]
[1766407944215,2.09897296,126.91,126.86,9.8]
[1766407944714,2.09897296,126.92,126.86,9.8]
[1766407944908,0.00377643,126.9,126.88,16.95677537]
[1766407950128,0.00377643,126.9,126.88,9.86007537]
[1766407950521,0.00377643,126.9,126.88,0.06007537]
[1766407950912,0.00377643,126.9,126.88,9.23007537]
[1766407951229,2.09897296,126.93,126.88,9.23007537]
[1766407952629,2.09897296,126.93,126.89,9.17]
[1766407955125,16.7228,126.96,126.89,9.17]
[1766407955423,2.09897296,126.94,126.91,0.05889197]
[1766407955631,11.80897296,126.94,126.91,0.05889197]
[1766407955824,11.80897296,126.94,126.89,9.17]
[1766407956928,0.05400575,126.93,126.9,0.05487803]
[1766407958925,2.09897296,126.92,126.87,16.2172]
[1766407959232,2.09897296,126.92,126.87,9.12]
[1766407959233,11.80897296,126.92,126.87,9.12]
[1766407960132,0.05883439,126.91,126.88,0.05120596]
[1766407966733,9.71,126.96,126.89,9.12]
[1766407967034,11.80897296,126.95,126.89,9.12]
[1766407967235,11.80897296,126.95,126.89,16.2159]
[1766407967633,0.05493561,126.93,126.91,0.05747433]
[1766407981436,11.86390857,126.93,126.87,9.12]
[1766407982534,11.86390857,126.93,126.89,0.05109118]
[1766407991448,9.76493561,126.93,126.89,0.05109118]
[1766407995449,13.04484223,126.93,126.85,9.0]
[1766407995652,8.97,126.92,126.85,9.0]
[1766407996245,8.97,126.92,126.86,7.0975]
[1766407996751,0.05301089,126.9,126.88,0.05904326]
[1766408002055,8.97,126.93,126.88,16.15554326]
[1766408002257,96.31990662,126.97,126.88,9.05904326]
[1766408002448,8.97,126.95,126.88,9.0]
[1766408003153,0.05435014,126.93,126.9,0.05587066]
[1766408003653,9.02435014,126.93,126.9,0.05587066]
[1766408004951,9.02435014,126.93,126.86,9.0]
[1766408005149,8.97,126.93,126.86,9.0]
[1766408005355,8.97,126.93,126.87,7.0973]
[1766408005559,8.97,126.93,126.86,9.0]
[1766408005765,8.97,126.92,126.86,9.0]
[1766408006062,0.05669274,126.9,126.88,0.05073715]
[1766408010670,9.50669274,126.9,126.88,0.00073715]
[1766408010966,0.05669274,126.9,126.88,0.00073715]
[1766408038802,9.03,126.93,126.88,8.89073715]
[1766408039900,0.05897368,126.92,126.88,8.89073715]
[1766408040698,0.05897368,126.92,126.89,7.0961]
[1766408045508,8.60897368,126.92,126.88,8.89073715]
[1766408046608,8.60897368,126.92,126.88,15.98743715]
[1766408048010,0.05897368,126.92,126.89,9.23]
[1766408048206,0.05897368,126.92,126.89,16.3261]
[1766408049109,8.60897368,126.92,126.88,0.00073715]
[1766408070720,8.60897368,126.92,126.88,8.83073715]
[1766408070925,0.05897368,126.92,126.88,8.83073715]
[1766408071421,0.05897368,126.92,126.88,15.92733715]
[1766408072724,9.29897368,126.92,126.88,0.00073715]
[1766408081635,8.9,126.88,126.82,9.24]
[1766408081835,8.9,126.88,126.8,9.24]
[1766408082636,0.0523326,126.85,126.83,0.05694067]
[1766408085844,8.9,126.88,126.83,9.29694067]
[1766408086639,0.05264835,126.87,126.83,16.39634067]
[1766408086842,8.95264835,126.87,126.83,7.15634067]
[1766408088448,8.95264835,126.87,126.83,0.05694067]
[1766408094741,8.95264835,126.87,126.79,102.3]
[1766408094942,8.9,126.87,126.8,9.24]
[1766408095650,8.9,126.87,126.82,0.05278629]
[1766408095857,0.05081778,126.85,126.82,0.05278629]
[1766408105854,0.00081778,126.85,126.82,15.98258629]
[1766408107060,0.00081778,126.85,126.83,7.0995]
[1766408113757,0.00081778,126.85,126.83,15.9295]
[1766408114060,0.00081778,126.85,126.84,15.9289]
[1766408114261,0.00081778,126.85,126.82,8.88278629]
[1766408115664,0.00081778,126.85,126.83,7.0995]
[1766408115856,0.00081778,126.85,126.83,15.9295]
[1766408117654,0.00081778,126.85,126.83,8.83]
[1766408121166,0.00081778,126.85,126.83,15.9294]
[1766408121464,0.00081778,126.85,126.84,8.83]
[1766408123971,0.00081778,126.85,126.82,8.88278629]
[1766408125071,0.00081778,126.85,126.82,15.98278629]
[1766408125270,0.00081778,126.85,126.83,8.83]
[1766408130466,8.66,126.9,126.83,8.83]
[1766408130775,8.66,126.91,126.84,8.56]
[1766408131476,0.05878805,126.89,126.86,0.0567202]
[1766408133877,0.05878805,126.89,126.86,15.7144202]
[1766408135578,12.06228195,126.93,126.87,8.23]
[1766408135772,8.78,126.93,126.87,8.23]
[1766408136184,8.78,126.93,126.88,8.23]
[1766408136770,0.05540754,126.92,126.89,0.050832]
[1766408137275,8.83540754,126.92,126.85,8.23]
[1766408137472,8.78,126.92,126.85,8.23]
[1766408138170,0.00081925,126.9,126.87,8.28252646]
[1766408138779,0.00081925,126.9,126.88,15.3266]
[1766408138973,0.00081925,126.9,126.89,8.23]
[1766408139176,8.78,126.94,126.89,8.23]
[1766408140180,0.05542029,126.93,126.9,0.05692344]
[1766408140784,0.05542029,126.93,126.9,8.28692344]
[1766408143994,0.05542029,126.93,126.9,15.38242344]
[1766408147692,0.05542029,126.93,126.9,0.05692344]
[1766408148191,8.83542029,126.93,126.9,0.05692344]
[1766408154092,0.05542029,126.93,126.9,0.05692344]
[1766408157292,8.83542029,126.93,126.9,0.05692344]
[1766408163898,8.83542029,126.93,126.84,8.23]
[1766408164199,8.78,126.91,126.84,8.23]
[1766408164401,8.78,126.91,126.84,15.3284]
[1766408164799,0.05269933,126.89,126.86,0.05339057]
[1766408165803,3.28228195,126.94,126.86,8.58339057]
[1766408165804,8.01,126.94,126.86,8.58339057]
[1766408165987,8.01,126.94,126.88,7.0967]
[1766408166192,8.01,126.94,126.88,15.6267]
[1766408166999,0.05233299,126.92,126.9,0.05582795]
[1766408170611,0.05233299,126.92,126.9,7.15142795]
[1766408170809,8.01,126.96,126.9,15.68142795]
[1766408171106,8.01,127.0,126.91,8.53]
[1766408171399,8.01,127.0,126.93,15.6238]
[1766408171800,8.01,127.0,126.95,0.05150363]
[1766408176705,8.01,127.03,126.95,8.58150363]
[1766408177003,8.01,127.03,126.98,0.05543363]
[1766408178099,10.10607021,127.03,126.98,0.05543363]
[1766408178412,93.04,127.04,126.92,110.3567]
[1766408178413,8.01,126.98,126.92,8.53]
[1766408179407,0.04991243,126.96,126.94,0.05669286]
[1766408184000,8.01,126.98,126.94,0.05669286]
[1766408185904,8.01,126.98,126.91,108.6646]
[1766408186102,8.01,126.98,126.91,101.57]
[1766408187011,0.0600951,126.96,126.93,0.05117647]
[1766408189007,8.0700951,126.96,126.93,0.00117647]
[1766408189204,8.01,126.94,126.88,8.53]
[1766408189609,10.10607021,126.94,126.88,8.53]
[1766408189808,7.98,126.93,126.88,8.53]
[1766408190210,0.05506418,126.92,126.89,0.0535483]
[1766408192008,8.03506418,126.92,126.89,0.0535483]
[1766408193316,0.05506418,126.92,126.89,0.0535483]
[1766408193715,0.05506418,126.92,126.89,15.7595483]
[1766408200116,10.51607021,126.97,126.9,15.3455]
[1766408200518,10.51607021,126.97,126.91,15.3448]
[1766408200732,10.51607021,126.97,126.91,8.25]
[1766408201018,10.51607021,126.97,126.92,7.0944]
[1766408201217,0.05793933,126.95,126.93,0.05976827]
[1766408221938,8.42,126.98,126.93,7.15366827]
[1766408223438,10.51607021,126.98,126.93,0.05976827]
[1766408226439,8.42,126.98,126.93,0.05976827]
[1766408226740,10.51607021,126.98,126.93,0.05976827]
[1766408227740,8.42,126.98,126.93,8.33976827]
[1766408227931,8.42,126.98,126.93,0.05976827]
[1766408228624,8.42,126.98,126.93,7.15366827]
[1766408229939,8.42,126.98,126.93,15.43366827]
[1766408231444,8.31,127.0,126.94,15.3733]
[1766408231637,8.31,127.0,126.96,0.05767463]
[1766408233438,10.40607021,127.0,126.96,0.05767463]
[1766408233644,8.36695626,126.99,126.93,7.0939]
[1766408234038,8.36695626,126.99,126.93,15.3739]
[1766408234543,8.36695626,126.99,126.95,0.05821727]
[1766408240148,8.31,126.98,126.91,8.28]
[1766408241046,0.05672166,126.96,126.93,0.0549668]
[1766408259956,0.05672166,126.96,126.93,8.2249668]
[1766408260157,8.05,126.99,126.93,8.2249668]
[1766408260458,8.05,127.02,126.93,8.2249668]
[1766408260656,8.05,127.02,126.93,8.17]
[1766408261353,0.05278693,126.99,126.96,0.05737947]
[1766408275463,8.03278693,126.99,126.96,0.05737947]
[1766408275673,0.05278693,126.99,126.96,0.05737947]
[1766408278468,8.03278693,126.99,126.96,0.05737947]
[1766408280465,0.05278693,126.99,126.96,0.05737947]
[1766408283676,0.05278693,126.99,126.93,7.87]
[1766408283677,11.25701005,126.97,126.93,7.87]
[1766408283975,7.98,126.97,126.93,7.87]
[1766408284674,0.05371503,126.96,126.94,0.05890853]
[1766408298383,0.05371503,126.96,126.94,7.84890853]
[1766408301285,0.00371503,126.96,126.94,7.84890853]
[1766408303081,0.00371503,126.96,126.95,7.79]
[1766408303282,7.88,127.02,126.95,7.79]
[1766408304384,0.05833987,127.0,126.97,0.05458727]
[1766408307479,9.97724873,127.03,126.98,7.79]
[1766408308072,7.88,127.03,126.98,7.79]
[1766408310988,2.09724873,127.02,126.97,0.05458727]
[1766408311190,7.98,127.01,126.97,0.05458727]
[1766408311393,93.0,127.06,126.97,0.05458727]
[1766408311394,7.98,126.99,126.97,0.00458727]
[1766408311688,7.98,126.99,126.93,7.84]
[1766408311990,7.98,126.99,126.93,14.9335]
[1766408312384,0.05762101,126.97,126.95,0.05817299]
[1766408312892,10.07724873,127.0,126.95,7.89817299]
[1766408319498,10.07724873,127.0,126.95,14.99087299]
[1766408321300,100.0685,127.03,126.96,14.8722]
[1766408321301,10.10724873,127.02,126.96,14.8722]
[1766408321597,10.10724873,127.02,126.98,0.05141077]
[1766408328806,8.01,127.02,126.98,14.92251077]
[1766408331303,8.01,127.02,126.98,0.05141077]
[1766408332007,10.10724873,127.02,126.98,0.05141077]
[1766408332212,8.01,127.01,126.98,0.05141077]
[1766408341214,8.01,127.01,126.98,0.00141077]
[1766408342311,8.06054384,127.01,126.98,0.00141077]
[1766408349113,10.15779257,127.01,126.98,0.00141077]
[1766408352119,8.01,127.0,126.94,14.4933]
[1766408352704,8.01,126.98,126.93,7.0939]
[1766408353219,0.055983,126.97,126.94,0.05349835]
[1766408355119,0.055983,126.97,126.94,7.45349835]
[1766408359124,0.055983,126.97,126.94,0.05349835]
[1766408366533,0.055983,126.97,126.94,7.45349835]
[1766408366932,8.01,127.01,126.95,7.4]
[1766408367131,8.01,127.02,126.95,7.4]
[1766408368123,11.28715369,127.02,126.97,0.05773019]
[1766408368329,8.01,127.01,126.97,0.05773019]